bitfinex-derivatives/quotes_SOLF0:USTF0_20250703
["timestamp","ask_amount","ask_price","bid_price","bid_amount"]
[1751580776431,6.5298,153.09,153.08,44.72]
[1751580777238,6.5295,153.1,153.08,47.12136712]
[1751580777436,2.40136712,153.12,153.08,47.12136712]
[1751580777636,5.31505559,153.11,153.08,47.12136712]
[1751580777837,6.5298,153.09,153.08,47.12136712]
[1751580779734,2.178,153.14,153.08,47.12136712]
[1751580779929,5.32385458,153.13,153.1,2.40136712]
[1751580780134,4.57936712,153.14,153.1,2.40136712]
[1751580780429,5.3239336,153.13,153.1,2.40136712]
[1751580780631,2.40136712,153.15,153.1,2.40136712]
[1751580780833,5.32542847,153.14,153.08,44.72]
[1751580781033,5.32542847,153.13,153.1,2.40136712]
[1751580781238,5.32621749,153.12,153.1,2.40136712]
[1751580781435,2.40136712,153.13,153.1,2.40136712]
[1751580781639,5.32621749,153.12,153.1,2.40136712]
[1751580781941,6.67700061,153.14,153.1,2.40136712]
[1751580782133,5.32621749,153.13,153.1,2.40136712]
[1751580782430,5.32621749,153.12,153.1,2.40136712]
[1751580782627,6.67700061,153.14,153.1,2.40136712]
[1751580782830,5.32698412,153.13,153.1,2.40136712]
[1751580783030,5.32698412,153.12,153.1,2.40136712]
[1751580783238,2.40136712,153.14,153.1,2.40136712]
[1751580783435,5.32781803,153.13,153.1,2.40136712]
[1751580783640,5.32781803,153.12,153.1,2.40136712]
[1751580783839,6.5288,153.12,153.1,2.40136712]
[1751580784338,2.40136712,153.14,153.11,6.5289]
[1751580784538,5.34235281,153.13,153.11,2.40136712]
[1751580784739,2.40136712,153.15,153.11,2.40136712]
[1751580785039,5.34219462,153.14,153.11,2.40136712]
[1751580785242,6.5285,153.12,153.1,2.40136712]
[1751580785738,2.40136712,153.14,153.1,2.40136712]
[1751580785932,5.34258734,153.13,153.1,2.40136712]
[1751580786130,6.5289,153.11,153.1,2.40136712]
[1751580786643,6.5295,153.1,153.09,2.40136712]
[1751580787844,2.40136712,153.14,153.09,8.93086712]
[1751580788043,5.34293734,153.13,153.1,2.40136712]
[1751580788244,5.34293734,153.12,153.1,2.40136712]
[1751580788448,2.40136712,153.14,153.1,2.40136712]
[1751580788646,5.34278478,153.13,153.1,2.40136712]
[1751580788839,2.40136712,153.14,153.1,2.40136712]
[1751580789039,6.5291,153.11,153.1,2.40136712]
[1751580790241,6.5288,153.12,153.1,2.40136712]
[1751580790550,2.40136712,153.14,153.1,2.40136712]
[1751580790848,9.90327761,153.13,153.1,2.40136712]
[1751580791046,2.40136712,153.14,153.1,2.40136712]
[1751580791248,6.5292,153.11,153.09,6.5296]
[1751580791551,6.5292,153.11,153.09,8.93096712]
[1751580792347,6.5292,153.11,153.08,51.25]
[1751580792647,6.5292,153.11,153.09,2.40136712]
[1751580792847,2.40136712,153.12,153.08,44.72]
[1751580793043,14.81373339,153.11,153.08,44.72]
[1751580793249,5.34334885,153.1,153.08,44.72]
[1751580793451,2.1999,153.12,153.08,47.12184861]
[1751580793645,14.81359037,153.11,153.08,47.12184861]
[1751580793846,6.5296,153.1,153.08,47.12184861]
[1751580795452,6.5298,153.09,153.08,47.12184861]
[1751580797456,6.5298,153.09,153.08,44.72]
[1751580798853,21.31476177,153.09,153.08,44.72]
[1751580799152,14.78496177,153.09,153.07,2.40184861]
[1751580799357,2.40184861,153.11,153.07,2.40184861]
[1751580799555,6.5302,153.08,153.07,2.40184861]
[1751580800156,6.5302,153.08,153.05,6.5313]
[1751580800350,6.5302,153.08,153.07,2.40184861]
[1751580802560,6.5302,153.08,153.06,6.5309]
[1751580802754,6.5302,153.08,153.07,2.40184861]
[1751580803456,10.23501853,153.08,153.04,44.68]
[1751580803766,14.77173116,153.07,153.04,47.08184861]
[1751580804055,6.0892855,153.1,152.97,12.15762481]
[1751580804056,2.40184861,153.05,152.97,12.15762481]
[1751580804259,14.73830923,153.04,152.97,2.40184861]
[1751580804454,9.41401037,153.03,153.02,2.40184861]
[1751580804658,2.2438,153.04,153.02,2.40184861]
[1751580804962,5.32392242,153.03,153.02,2.40184861]
[1751580805165,2.1576,153.06,153.02,2.40184861]
[1751580805456,6.67040204,153.08,153.05,2.40184861]
[1751580805663,6.5311,153.06,153.05,2.40184861]
[1751580805858,14.22788494,153.06,153.03,3.75421311]
[1751580806057,6.5311,153.06,153.03,3.75421311]
[1751580806362,6.5315,153.05,153.04,3.75421311]
[1751580806861,2.1491,153.08,153.04,3.75421311]
[1751580807064,7.80468427,153.07,153.03,3.75421311]
[1751580807257,2.3781581,153.06,153.03,3.75421311]
[1751580807457,2.1491,153.08,153.03,3.75421311]
[1751580807664,7.80314575,153.07,153.01,3.75421311]
[1751580807963,2.1491,153.08,153.01,3.75421311]
[1751580807964,2.37759538,153.06,153.01,3.75421311]
[1751580808168,6.5322,153.04,153.01,3.75421311]
[1751580808458,4.5184151,153.06,153.01,3.75421311]
[1751580808663,6.5326,153.03,153.01,3.75421311]
[1751580809762,6.5328,153.02,153.0,10.28781311]
[1751580810554,6.5326,153.03,153.0,10.28781311]
[1751580811860,6.5326,153.03,153.0,198.88781311]
[1751580812054,6.5326,153.03,153.01,6.5332]
[1751580812460,6.5321,153.04,153.01,6.5332]
[1751580812964,6.5317,153.05,153.02,3.75421311]
[1751580814564,6.5317,153.05,153.02,10.28681311]
[1751580815264,8.93714678,153.08,153.04,3.75421311]
[1751580815265,2.1491,153.08,153.04,3.75421311]
[1751580815669,5.46056593,153.1,153.06,3.75421311]
[1751580815864,2.36694102,153.09,153.06,3.75421311]
[1751580816169,2.36694102,153.08,153.06,3.75421311]
[1751580816369,6.5303,153.08,153.06,3.75421311]
[1751580816763,6.5303,153.08,153.05,198.78531311]
[1751580820777,6.5299,153.09,153.07,6.5307]
[1751580820969,8.99972295,153.12,153.07,3.75421311]
[1751580821275,7.88145205,153.11,153.07,3.75421311]
[1751580821471,6.53,153.09,153.07,10.28471311]
[1751580822374,6.5295,153.1,153.07,10.28471311]
[1751580822574,9.03345067,153.12,153.07,10.28471311]
[1751580822575,4.52055067,153.12,153.08,6.5302]
[1751580822778,7.88143606,153.11,153.08,6.5302]
[1751580822974,2.401854,153.1,153.08,6.5302]
[1751580823274,2.3305,153.13,153.09,3.75421311]
[1751580823469,7.88059145,153.12,153.08,48.51421311]
[1751580823668,8.93068773,153.11,153.09,6.5298]
[1751580823979,6.5292,153.11,153.09,6.5298]
[1751580824879,6.5292,153.11,153.08,55.04421311]
[1751580825372,6.5294,153.1,153.08,55.04421311]
[1751580826273,6.85049636,153.13,153.08,48.51421311]
[1751580826473,12.40155531,153.12,153.08,44.76]
[1751580826668,7.88112444,153.11,153.08,44.76]
[1751580826874,2.40168271,153.1,153.08,44.76]
[1751580827070,6.5298,153.1,153.08,44.76]
[1751580828283,6.5298,153.09,153.08,44.76]
[1751580831279,8.9366907,153.09,153.08,44.76]
[1751580832588,6.5306,153.08,153.06,188.46]
[1751580835196,6.5307,153.07,153.06,188.44]
[1751580837181,6.5305,153.08,153.06,194.9709]
[1751580837386,6.5305,153.08,153.06,188.44]
[1751580839093,6.53,153.09,153.06,198.72491311]
[1751580839288,3.75421311,153.12,153.06,198.72491311]
[1751580839488,12.41575017,153.11,153.06,192.19421311]
[1751580839689,6.5307,153.07,153.06,192.19421311]
[1751580839892,3.75421311,153.12,153.06,192.19421311]
[1751580840093,6.5305,153.08,153.06,192.19421311]
[1751580840394,6.5305,153.08,153.06,188.44]
[1751580840896,6.5305,153.08,153.06,194.971]
[1751580843686,6.5307,153.07,153.06,188.44]
[1751580843886,6.5307,153.07,153.06,188.5]
[1751580844600,6.5307,153.07,153.06,188.46]
[1751580849196,6.5307,153.07,153.05,51.2913]
[1751580849396,6.5307,153.07,153.06,188.44]
[1751580852396,6.5305,153.08,153.06,188.44]
[1751580854204,6.5305,153.08,153.06,194.971]
[1751580854906,6.5305,153.08,153.07,188.44]
[1751580855305,8.93573567,153.08,153.07,188.44]
[1751580856099,2.40523567,153.08,153.07,188.44]
[1751580856409,2.3305,153.13,153.07,188.44]
[1751580856608,12.44541235,153.12,153.08,3.75421311]
[1751580856807,18.97441235,153.11,153.08,10.28431311]
[1751580857008,2.40571911,153.1,153.08,10.28431311]
[1751580857208,2.40571911,153.09,153.08,10.28431311]
[1751580857809,2.40571911,153.09,153.08,3.75421311]
[1751580859019,8.93551911,153.09,153.08,3.75421311]
[1751580859212,7.90165386,153.09,153.07,188.44]
[1751580859407,3.75421311,153.11,153.07,188.44]
[1751580859608,3.75421311,153.11,153.05,44.76]
[1751580859609,7.9054425,153.1,153.05,44.76]
[1751580859809,7.9054425,153.09,153.06,188.44]
[1751580860009,7.9054425,153.08,153.06,188.44]
[1751580860209,6.5311,153.06,153.05,44.76]
[1751580860412,8.94039822,153.06,153.05,233.2]
[1751580864208,8.94039822,153.06,153.05,44.76]
[1751580864415,12.47761861,153.06,153.04,188.44]
[1751580864614,12.47761861,153.05,153.04,188.44]
[1751580864816,6.5319,153.04,153.03,188.44]
[1751580865018,14.43602561,153.04,153.03,188.44]
[1751580865915,8.94045365,153.04,153.03,188.44]
[1751580866316,8.93952116,153.04,153.03,188.44]
[1751580870017,6.5319,153.04,153.03,188.44]
[1751580870217,8.93718984,153.04,153.03,188.44]
[1751580875317,6.5328,153.02,153.01,44.68]
[1751580875524,6.5328,153.02,153.01,233.14]
[1751580879223,6.5328,153.02,153.01,233.16]
[1751580881928,6.5328,153.02,153.01,44.68]
[1751580882123,6.5344,152.99,152.97,44.7]
[1751580882529,6.5345,152.98,152.97,44.7]
[1751580882729,6.5345,152.98,152.97,233.18]
[1751580883430,6.5345,152.98,152.97,44.7]
[1751580883729,3.75421311,153.03,152.97,233.18]
[1751580883931,3.75421311,153.03,152.98,188.48]
[1751580884325,3.75421311,153.03,152.99,188.48]
[1751580884828,9.19987098,153.03,152.99,188.48]
[1751580885027,6.5336,153.0,152.99,188.48]
[1751580890130,6.5342,152.99,152.97,51.2349]
[1751580890329,6.5342,152.99,152.98,188.5]
[1751580891031,6.5342,152.99,152.97,51.2349]
[1751580891331,6.5342,152.99,152.98,188.5]
[1751580892234,6.5342,152.99,152.97,51.2349]
[1751580892428,6.5342,152.99,152.98,188.5]
[1751580896233,6.5345,152.98,152.97,44.7]
[1751580896435,6.5345,152.98,152.97,233.2]
[1751580896637,2.3875,153.02,152.97,233.2]
[1751580897233,6.5343,152.99,152.97,239.7349]
[1751580900439,6.5338,153.0,152.98,6.5345]
[1751580900638,2.3875,153.02,152.99,188.5]
[1751580900842,2.38854856,153.01,152.99,188.5]
[1751580901038,6.5336,153.0,152.99,188.5]
[1751580901943,6.5334,153.01,152.99,195.0341]
[1751580902241,2.3875,153.02,152.99,188.5]
[1751580902429,6.5336,153.0,152.99,188.5]
[1751580904052,8.92410544,153.0,152.99,188.5]
[1751580904353,6.5345,152.98,152.97,44.7]
[1751580904553,6.5345,152.98,152.97,233.18]
[1751580908052,6.5345,152.98,152.97,44.7]
[1751580908356,6.5345,152.98,152.97,233.18]
[1751580913461,6.5343,152.99,152.97,239.7149]
[1751580915361,6.5338,153.0,152.98,6.5345]
[1751580915563,6.5338,153.0,152.99,188.48]
[1751580915753,8.92897649,153.0,152.99,188.48]
[1751580917162,14.37103778,153.0,152.99,188.48]
[1751580917365,6.5345,152.98,152.97,44.7]
[1751580917559,6.5345,152.98,152.97,233.18]
[1751580919063,6.5345,152.98,152.97,44.7]
[1751580919266,6.5345,152.98,152.97,233.18]
[1751580923366,6.5345,152.98,152.97,44.7]
[1751580923662,6.5345,152.98,152.97,233.18]
[1751580924368,8.93295832,152.98,152.97,44.7]
[1751580924566,8.93295832,152.98,152.97,233.16]
[1751580926868,11.33851027,152.98,152.97,44.7]
[1751580927060,16.79064093,152.98,152.97,233.16]
[1751580927370,10.25614093,152.98,152.94,6.5359]
[1751580927558,8.49957556,153.02,152.95,188.46]
[1751580927559,2.40555195,152.96,152.95,188.46]
[1751580927765,4.80401027,152.96,152.95,188.46]
[1751580928170,11.33941027,152.96,152.95,188.46]
[1751580929174,6.5359,152.95,152.93,51.2164]
[1751580929370,6.5359,152.95,152.94,188.46]
[1751580931173,6.5359,152.95,152.93,51.2164]
[1751580931372,6.5359,152.95,152.94,188.46]
[1751580935078,6.5357,152.96,152.94,197.40175195]
[1751580937276,6.5357,152.96,152.95,188.46]
[1751580937473,8.92864077,152.96,152.95,188.46]
[1751580939177,2.39294077,152.96,152.95,194.9958]
[1751580939383,2.39294077,152.96,152.95,197.40135195]
[1751580940576,5.43383819,152.98,152.96,6.535]
[1751580940882,2.40555195,153.0,152.97,190.86555195]
[1751580941176,14.36017531,152.99,152.97,190.86555195]
[1751580941482,2.39216066,152.98,152.97,197.40045195]
[1751580942083,2.39216066,152.98,152.97,190.86555195]
[1751580942382,8.92666066,152.98,152.97,190.86555195]
[1751580943483,8.92666066,152.98,152.97,188.46]
[1751580944278,14.36995129,152.98,152.97,188.46]
[1751580944787,16.77550324,152.98,152.97,188.46]
[1751580945078,6.5351,152.97,152.93,47.08555195]
[1751580945285,2.39216066,152.96,152.95,188.44]
[1751580945484,2.39216066,152.96,152.95,194.9756]
[1751580946783,7.83630257,152.96,152.94,188.44]
[1751580946989,2.39216066,152.95,152.94,188.44]
[1751580947492,2.39216066,152.95,152.94,194.9762]
[1751580948190,2.39216066,152.95,152.94,188.44]
[1751580950287,2.39216066,152.95,152.93,8.94195195]
[1751580950485,2.40555195,152.94,152.92,44.68]
[1751580950790,2.40555195,152.94,152.93,188.44]
[1751580950994,8.93179674,152.94,152.93,188.44]
[1751580952587,2.39559674,152.94,152.93,197.38215195]
[1751580952791,6.536,152.95,152.93,190.84555195]
[1751580955193,6.5355,152.96,152.94,2.40555195]
[1751580958496,6.5355,152.96,152.94,8.94175195]
[1751580959190,6.5355,152.96,152.94,6.5362]
[1751580959390,9.35695195,152.98,152.94,2.40555195]
[1751580959596,12.46083257,152.97,152.94,2.40555195]
[1751580959794,2.39180935,152.96,152.94,2.40555195]
[1751580959996,6.5357,152.96,152.94,2.40555195]
[1751580961500,2.39219952,152.95,152.94,2.40555195]
[1751580961899,2.39219952,152.95,152.94,8.94175195]
[1751580962307,14.83427986,153.0,152.94,2.40555195]
[1751580962498,12.47651279,152.99,152.97,2.40555195]
[1751580962799,14.36509465,152.98,152.97,190.82555195]
[1751580963000,8.92667216,152.98,152.97,190.82555195]
[1751580964001,8.92667216,152.98,152.97,188.42]
[1751580964302,14.36567052,152.98,152.97,188.42]
[1751580977111,7.83117052,152.98,152.97,188.42]
[1751580977414,7.84400705,152.98,152.97,188.42]
[1751580978113,14.37850705,152.98,152.97,188.42]
[1751580980411,8.92667216,152.98,152.97,188.42]
[1751580985018,8.92667216,152.98,152.97,188.42]
[1751580988220,8.92807382,152.98,152.97,188.42]
[1751580988823,2.39357382,152.98,152.97,190.82555195]
[1751580989021,4.46990245,153.03,152.97,190.82555195]
[1751580989222,99.76842416,153.06,153.02,2.40555195]
[1751580989417,6.5328,153.03,153.02,190.72555195]
[1751580989623,16.49453767,153.03,153.02,190.72555195]
[1751580990121,11.98468239,153.03,153.02,190.72555195]
[1751580990320,11.98468239,153.03,153.02,188.32]
[1751580991421,11.98468239,153.03,153.02,190.72555195]
[1751580991618,5.45188239,153.03,153.02,190.72555195]
[1751580991813,6.11307488,153.07,153.02,197.25835195]
[1751580992014,5.43823143,153.06,153.04,2.40555195]
[1751580992214,15.11942683,153.09,153.04,2.40555195]
[1751580992518,5.43483677,153.08,153.05,190.70555195]
[1751580992723,5.43483677,153.07,153.05,190.70555195]
[1751580992915,9.00635195,153.09,153.05,190.70555195]
[1751580993225,7.86276556,153.08,153.05,190.70555195]
[1751580993422,5.45721361,153.07,153.05,188.3]
[1751580993616,6.5312,153.06,153.05,188.3]
[1751580994215,11.9853701,153.06,153.05,188.3]
[1751580994419,8.93675195,153.06,153.05,188.3]
[1751580995426,6.5312,153.06,153.05,188.3]
[1751580997627,6.5325,153.03,153.02,188.26]
[1751580998830,6.5337,153.0,152.99,44.64]
[1751580999130,3.75818627,153.01,152.97,188.24]
[1751580999327,3.75818627,153.01,152.96,188.24]
[1751580999825,6.02028627,153.01,152.96,188.24]
[1751581000025,5.46367464,153.0,152.95,44.62]
[1751581000224,3.75818627,152.99,152.95,44.62]
[1751581000530,6.5354,152.96,152.95,44.62]
[1751581008835,6.5351,152.97,152.95,44.62]
[1751581011533,6.5354,152.96,152.95,44.62]
[1751581013934,6.5351,152.97,152.95,44.62]
[1751581014231,3.75818627,152.99,152.95,232.88]
[1751581014532,2.33692398,152.98,152.95,232.88]
[1751581014725,3.75818627,152.99,152.95,232.88]
[1751581014923,2.33692398,152.98,152.95,232.88]
[1751581015128,3.75818627,152.99,152.95,232.88]
[1751581015335,2.33683295,152.98,152.95,188.26]
[1751581015534,6.5354,152.96,152.95,188.26]
[1751581019541,6.536,152.95,152.93,194.7965]
[1751581020937,2.33505262,152.98,152.91,44.62]
[1751581021143,6.09329584,152.97,152.92,188.26]
[1751581021442,3.75818627,152.97,152.92,188.26]
[1751581021942,3.75818627,152.97,152.92,6.5368]
[1751581022142,3.75818627,152.97,152.93,188.26]
[1751581023244,6.5361,152.95,152.93,188.26]
[1751581023845,6.5362,152.94,152.93,188.26]
[1751581026147,6.537,152.93,152.91,44.62]
[1751581026449,6.537,152.93,152.92,188.26]
[1751581027556,6.537,152.93,152.91,44.62]
[1751581027850,3.75818627,152.95,152.9,188.26]
[1751581028054,2.33297478,152.94,152.9,188.26]
[1751581028352,9.13357396,152.95,152.9,188.26]
[1751581028353,3.75818627,152.95,152.9,188.26]
[1751581028547,6.5377,152.91,152.9,188.26]
[1751581029547,6.5381,152.9,152.89,188.26]
[1751581030551,6.5386,152.89,152.87,44.62]
[1751581030847,6.5386,152.89,152.88,188.26]
[1751581031253,6.5382,152.9,152.88,188.26]
[1751581032155,6.5382,152.9,152.87,51.1589]
[1751581032354,6.5382,152.9,152.88,188.28]
[1751581033256,3.75818627,152.95,152.88,188.28]
[1751581034056,3.75818627,152.95,152.89,6.5382]
[1751581034552,6.5375,152.92,152.89,6.5382]
[1751581036055,3.75818627,152.93,152.87,44.62]
[1751581036357,3.75818627,152.89,152.85,188.28]
[1751581037158,6.5395,152.87,152.86,188.28]
[1751581038956,6.5395,152.87,152.85,6.54]
[1751581039153,6.5395,152.87,152.86,188.28]
[1751581042462,2.1673,152.93,152.86,188.28]
[1751581042657,2.32318668,152.92,152.86,192.03818627]
[1751581042862,2.32318668,152.91,152.86,3.75818627]
[1751581043064,8.86258112,152.9,152.87,194.859]
[1751581043264,6.5382,152.9,152.87,194.859]
[1751581044365,6.5382,152.9,152.88,6.5388]
[1751581044566,6.5377,152.91,152.87,188.32]
[1751581044766,53.03308627,152.96,152.87,188.32]
[1751581044973,3.75818627,152.92,152.87,188.3]
[1751581045166,6.5386,152.89,152.87,188.44]
[1751581047370,6.5386,152.89,152.87,194.9792]
[1751581049574,6.5386,152.89,152.87,6.5392]
[1751581049770,6.5386,152.89,152.87,194.9392]
[1751581054571,6.5386,152.89,152.87,194.8592]
[1751581056974,6.5388,152.88,152.87,188.32]
[1751581060075,6.5386,152.89,152.87,194.8592]
[1751581060274,3.75818627,152.94,152.87,188.32]
[1751581060477,3.75818627,152.92,152.87,188.32]
[1751581060777,2.32531164,152.91,152.87,188.32]
[1751581060972,2.32531164,152.9,152.87,188.32]
[1751581061279,5.35749578,152.91,152.87,188.32]
[1751581061481,2.32594467,152.9,152.87,188.32]
[1751581061679,6.5391,152.88,152.87,188.32]
[1751581064378,3.76372961,152.92,152.86,188.32]
[1751581064570,12.03428736,152.91,152.86,188.32]
[1751581064772,2.3266969,152.9,152.86,188.32]
[1751581064979,6.5392,152.88,152.86,188.32]
[1751581067476,6.5392,152.88,152.85,6.5399]
[1751581067679,6.5392,152.87,152.86,188.32]
[1751581067875,4.3501,152.91,152.86,188.32]
[1751581068080,7.68873822,152.9,152.86,194.8596]
[1751581068379,6.539,152.88,152.86,194.8596]
[1751581071780,6.539,152.88,152.86,197.26833638]
[1751581074279,2.33059564,152.87,152.86,197.26833638]
[1751581075383,6.09068348,152.93,152.86,190.72873638]
[1751581075582,7.77325665,152.92,152.83,56.78658864]
[1751581075882,9.62407127,152.91,152.9,2.40873638]
[1751581076077,5.36452031,152.91,152.9,188.66]
[1751581076281,4.65493638,152.93,152.9,188.66]
[1751581076476,6.5375,152.91,152.9,188.66]
[1751581076684,11.90209549,152.91,152.9,188.66]
[1751581084991,6.5381,152.9,152.88,2.40873638]
[1751581085391,6.5381,152.9,152.88,8.94743638]
[1751581086795,6.5381,152.9,152.88,6.5387]
[1751581087397,2.2753876,152.89,152.88,6.5387]
[1751581087697,8.8153876,152.89,152.82,12.18658864]
[1751581087888,2.40873638,152.87,152.78,12.18658864]
[1751581088088,7.65524011,152.86,152.83,2.40873638]
[1751581088294,2.27755791,152.85,152.83,2.40873638]
[1751581088486,2.27696574,152.84,152.83,2.40873638]
[1751581088688,8.81746574,152.84,152.83,2.40873638]
[1751581089994,8.81746574,152.84,152.82,2.40873638]
[1751581090195,6.5405,152.84,152.82,2.40873638]
[1751581091994,6.5405,152.84,152.83,2.40961602]
[1751581092696,6.5405,152.84,152.82,8.95101602]
[1751581094393,6.5403,152.85,152.82,8.95101602]
[1751581094593,2.40961602,152.89,152.84,2.40961602]
[1751581094796,12.27872272,152.88,152.85,2.40961602]
[1751581095100,2.26186027,152.87,152.85,2.40961602]
[1751581095299,6.5396,152.87,152.84,6.5403]
[1751581095498,6.5396,152.87,152.85,2.40961602]
[1751581096499,6.5397,152.86,152.85,2.40961602]
[1751581097094,6.5397,152.86,152.84,8.94991602]
[1751581097796,6.5397,152.86,152.84,6.5403]
[1751581099090,6.5394,152.87,152.84,6.5403]
[1751581099290,4.55683934,152.89,152.85,6.54]
[1751581099495,7.72297777,152.88,152.85,6.54]
[1751581099695,2.26414877,152.87,152.86,6.5397]
[1751581099895,10.0321075,152.9,152.86,6.5397]
[1751581100095,2.26403088,152.89,152.85,3.76405893]
[1751581100297,8.16145893,152.92,152.85,3.76405893]
[1751581100493,6.5381,152.9,152.87,6.5389]
[1751581100696,2.26390019,152.89,152.87,6.5389]
[1751581100995,6.5381,152.9,152.87,6.5389]
[1751581101195,2.26389996,152.89,152.87,6.5389]
[1751581101397,6.5384,152.89,152.87,6.5389]
[1751581101900,4.3974,152.92,152.87,6.5389]
[1751581102203,12.29509276,152.91,152.87,6.5389]
[1751581102397,12.29509276,152.9,152.87,6.5389]
[1751581102594,2.26388524,152.89,152.87,6.5389]
[1751581102803,4.3974,152.92,152.87,6.5389]
[1751581102996,7.72597919,152.91,152.87,6.5389]
[1751581103305,4.3974,152.92,152.87,6.5389]
[1751581103306,12.29899009,152.9,152.87,6.5389]
[1751581103506,8.80624156,152.89,152.87,6.5389]
[1751581103701,6.5384,152.89,152.87,6.5389]
[1751581104300,6.5381,152.9,152.87,6.5389]
[1751581104506,2.26774525,152.89,152.87,6.5389]
[1751581104705,6.5381,152.9,152.87,6.5389]
[1751581105005,2.26781409,152.89,152.87,6.5389]
[1751581105204,6.5381,152.9,152.87,6.5389]
[1751581105205,6.5381,152.9,152.88,6.5388]
[1751581105408,2.26788112,152.89,152.88,6.5388]
[1751581105798,3.76405893,152.94,152.9,6.5378]
[1751581105799,6.10944011,152.94,152.9,6.5378]
[1751581105996,12.34486616,152.93,152.9,6.5378]
[1751581106197,2.26733305,152.92,152.9,6.5378]
[1751581106402,4.59679189,152.94,152.9,6.5378]
[1751581106603,7.74567628,152.93,152.9,6.5378]
[1751581106803,3.76405893,152.96,152.9,6.5378]
[1751581107003,12.14109951,152.95,152.9,6.5378]
[1751581107200,7.74457714,152.94,152.9,6.5378]
[1751581107397,2.26649845,152.93,152.9,6.5378]
[1751581107601,4.39652237,152.95,152.9,6.5378]
[1751581107797,7.74289884,152.94,152.9,6.5378]
[1751581108007,2.26599474,152.93,152.9,6.5378]
[1751581108207,4.39652237,152.95,152.9,6.5378]
[1751581108407,7.74437088,152.94,152.9,6.5378]
[1751581108609,6.5372,152.92,152.9,6.5378]
[1751581109008,4.39652237,152.95,152.9,6.5378]
[1751581109213,6.5368,152.93,152.9,6.5378]
[1751581109918,6.5365,152.94,152.89,3.76405893]
[1751581110212,6.5365,152.94,152.89,48.92405893]
[1751581111510,4.4634,152.98,152.93,3.76405893]
[1751581111714,5.48019209,152.97,152.93,3.76405893]
[1751581112014,4.40701867,153.0,152.94,45.16]
[1751581112207,7.74574027,152.99,152.95,3.76405893]
[1751581112510,6.534,153.0,152.97,6.535]
[1751581112716,5.47674738,152.99,152.97,6.535]
[1751581112914,10.38985893,153.02,152.95,3.76405893]
[1751581113116,7.74534276,153.01,152.96,6.5351]
[1751581113316,2.2688328,153.0,152.96,6.5351]
[1751581113518,5.47240948,153.01,152.96,6.5351]
[1751581113817,7.73991885,153.0,152.96,6.5351]
[1751581114012,6.5343,152.99,152.96,6.5351]
[1751581114218,10.38985893,153.02,152.95,6.5356]
[1751581114411,10.38985893,153.02,152.94,45.16]
[1751581114412,7.73915287,153.01,152.94,45.16]
[1751581114612,6.5344,152.99,152.94,45.16]
[1751581114816,6.5344,152.99,152.95,3.76405893]
[1751581115415,6.5344,152.99,152.96,6.5353]
[1751581115718,6.5344,152.99,152.95,3.76405893]
[1751581115719,6.6258,153.02,152.97,3.76405893]
[1751581115915,2.26504625,153.01,152.97,3.76405893]
[1751581116118,6.6258,153.02,152.97,10.29885893]
[1751581116315,6.5339,153.0,152.97,10.29885893]
[1751581117320,4.4031,153.02,152.94,45.16]
[1751581117521,8.16715893,153.02,152.95,3.76405893]
[1751581117822,6.5346,152.98,152.96,6.5352]
[1751581118012,6.5346,152.98,152.95,3.76405893]
[1751581118519,6.5346,152.98,152.95,10.29955893]
[1751581123021,6.5346,152.98,152.95,6.5355]
[1751581123622,6.5346,152.98,152.96,6.5354]
[1751581124515,6.5346,152.98,152.95,6.5356]
[1751581124715,6.5353,152.97,152.94,45.16]
[1751581124929,6.5353,152.97,152.94,51.696]
[1751581126526,6.5349,152.98,152.95,6.5356]
[1751581126724,3.76405893,153.0,152.95,6.5356]
[1751581126925,3.76405893,153.0,152.94,45.16]
[1751581127126,6.5352,152.97,152.94,51.6961]
[1751581128128,6.5356,152.96,152.94,45.16]
[1751581129129,6.5358,152.95,152.94,45.16]
[1751581129520,6.5356,152.96,152.94,45.16]